[Event "*** MasterClass Titled Tuesday Blitz"]
[Site "Chess.com"]
[Date "2017.07.04"]
[Round "1"]
[White "Federtiu"]
[Black "FearlessKing64"]
[Result "1-0"]
[WhiteElo "2454"]
[BlackElo "2184"]
[TimeControl "180+2"]
[EndTime "13:09:30 PDT"]
[Termination "Federtiu won by resignation"]

1. c4 {[%clk 0:03:01.9]} 1... Nf6 {[%clk 0:02:59.6]} 2. Nc3 {[%clk 0:03:01.9]}
2... d5 {[%clk 0:03:00.3]} 3. cxd5 {[%clk 0:03:01.5]} 3... Nxd5 {[%clk
0:03:00.9]} 4. g3 {[%clk 0:03:02.7]} 4... c5 {[%clk 0:03:01.4]} 5. Bg2 {[%clk
0:03:04]} 5... Nc7 {[%clk 0:03:02.3]} 6. d3 {[%clk 0:03:02.5]} 6... e5 {[%clk
0:02:59.5]} 7. Nf3 {[%clk 0:02:55.9]} 7... Nc6 {[%clk 0:02:59.9]} 8. O-O {[%clk
0:02:57.2]} 8... Be7 {[%clk 0:03:00.7]} 9. a3 {[%clk 0:02:58.1]} 9... f6 {[%clk
0:02:50.4]} 10. h4 {[%clk 0:02:22.7]} 10... Be6 {[%clk 0:02:45.9]} 11. Be3
{[%clk 0:02:16.2]} 11... Qd7 {[%clk 0:02:37.4]} 12. Ne4 {[%clk 0:01:58.2]} 12...
b6 {[%clk 0:02:35.1]} 13. Rc1 {[%clk 0:01:47.7]} 13... Nd5 {[%clk 0:02:33]} 14.
Bd2 {[%clk 0:01:38.9]} 14... Rc8 {[%clk 0:02:33.1]} 15. Re1 {[%clk 0:01:22.9]}
15... O-O {[%clk 0:02:32.7]} 16. Qa4 {[%clk 0:01:09.7]} 16... Rfd8 {[%clk
0:02:29.6]} 17. h5 {[%clk 0:01:05.7]} 17... h6 {[%clk 0:02:18]} 18. Nh4 {[%clk
0:00:53.3]} 18... f5 {[%clk 0:02:18.5]} 19. Nc3 {[%clk 0:00:48.7]} 19... Bxh4
{[%clk 0:02:18.5]} 20. gxh4 {[%clk 0:00:50.6]} 20... Nf6 {[%clk 0:02:08.7]} 21.
b4 {[%clk 0:00:40.1]} 21... Nd4 {[%clk 0:01:47.3]} 22. Qxd7 {[%clk 0:00:37.2]}
22... Rxd7 {[%clk 0:01:43]} 23. bxc5 {[%clk 0:00:38.6]} 23... Rxc5 {[%clk
0:01:39.7]} 24. Be3 {[%clk 0:00:32.9]} 24... Rc8 {[%clk 0:01:17]} 25. f4 {[%clk
0:00:22.8]} 25... Nb3 {[%clk 0:00:49.3]} 26. fxe5 {[%clk 0:00:13.2]} 26... Nxc1
{[%clk 0:00:49.4]} 27. exf6 {[%clk 0:00:14.3]} 27... Rxc3 {[%clk 0:00:45.8]} 28.
Bxc1 {[%clk 0:00:13.9]} 28... gxf6 {[%clk 0:00:37.7]} 29. Bxh6 {[%clk
0:00:14.7]} 29... Rh7 {[%clk 0:00:32.7]} 30. Bf4 {[%clk 0:00:09.5]} 30... Rxh5
{[%clk 0:00:29.8]} 31. Bg3 {[%clk 0:00:11.1]} 31... f4 {[%clk 0:00:28.2]} 32.
Bf2 {[%clk 0:00:12.1]} 32... Rxa3 {[%clk 0:00:25.4]} 33. Bf3 {[%clk 0:00:13.4]}
33... Rh7 {[%clk 0:00:25.1]} 34. Rc1 {[%clk 0:00:14]} 34... Rd7 {[%clk
0:00:24.4]} 35. Rc6 {[%clk 0:00:14.6]} 35... Kf7 {[%clk 0:00:22.5]} 36. h5
{[%clk 0:00:15.8]} 36... Bf5 {[%clk 0:00:21.5]} 37. Bh4 {[%clk 0:00:15.8]} 37...
Be6 {[%clk 0:00:20.3]} 38. h6 {[%clk 0:00:17.1]} 38... Rd8 {[%clk 0:00:16.7]}
39. Bh5+ {[%clk 0:00:18]} 39... Ke7 {[%clk 0:00:17.2]} 40. h7 {[%clk 0:00:12.5]}
40... Rh8 {[%clk 0:00:18]} 41. Bg4 {[%clk 0:00:13.9]} 41... Bxg4 {[%clk
0:00:15.9]} 42. Bxf6+ {[%clk 0:00:14.9]} 42... Kd7 {[%clk 0:00:16.4]} 43. Bxh8
{[%clk 0:00:16.8]} 43... Kxc6 {[%clk 0:00:16]} 44. Bb2 {[%clk 0:00:17.4]} 44...
Ra2 {[%clk 0:00:16.1]} 45. h8=Q {[%clk 0:00:18.7]} 45... Bd7 {[%clk 0:00:17.1]}
46. Qf6+ {[%clk 0:00:19.8]} 46... Kb7 {[%clk 0:00:17.4]} 47. Qe5 {[%clk
0:00:21.4]} 47... Bc6 {[%clk 0:00:18.3]} 48. Kf2 {[%clk 0:00:22.4]} 48... Ra4
{[%clk 0:00:18.2]} 49. Qe7+ {[%clk 0:00:23.1]} 49... Ka6 {[%clk 0:00:18.8]} 50.
Be5 {[%clk 0:00:24.4]} 50... Bb5 {[%clk 0:00:19.4]} 51. Bb8 {[%clk 0:00:25]}
51... Ka5 {[%clk 0:00:20.6]} 52. Qxa7+ {[%clk 0:00:25.3]} 52... Kb4 {[%clk
0:00:22.2]} 53. Bd6+ {[%clk 0:00:26.1]} 53... Kb3 {[%clk 0:00:21.3]} 54. Qxb6
{[%clk 0:00:27.7]} 1-0

[Event "*** MasterClass Titled Tuesday Blitz"]
[Site "Chess.com"]
[Date "2017.07.04"]
[Round "1"]
[White "GianmarcoVaR"]
[Black "charlescandycampbell"]
[Result "0-1"]
[WhiteElo "2415"]
[BlackElo "2128"]
[TimeControl "180+2"]
[EndTime "13:09:30 PDT"]
[Termination "charlescandycampbell won by checkmate"]

1. d4 {[%clk 0:02:47.8]} 1... Nf6 {[%clk 0:03:00.4]} 2. c4 {[%clk 0:02:48.8]}
2... e6 {[%clk 0:03:01.6]} 3. g3 {[%clk 0:02:49.8]} 3... d5 {[%clk 0:03:02.1]}
4. Nf3 {[%clk 0:02:50.1]} 4... c6 {[%clk 0:03:02.6]} 5. Bg2 {[%clk 0:02:50.8]}
5... Bd6 {[%clk 0:03:03.3]} 6. O-O {[%clk 0:02:51.8]} 6... Nbd7 {[%clk
0:03:04.4]} 7. Nc3 {[%clk 0:02:52.2]} 7... O-O {[%clk 0:03:05.5]} 8. Nd2 {[%clk
0:02:53.3]} 8... Bb4 {[%clk 0:03:01.8]} 9. e4 {[%clk 0:02:48.4]} 9... Bxc3
{[%clk 0:03:02.7]} 10. bxc3 {[%clk 0:02:49.2]} 10... Nxe4 {[%clk 0:03:01.9]} 11.
Nxe4 {[%clk 0:02:50]} 11... dxe4 {[%clk 0:03:03]} 12. Bxe4 {[%clk 0:02:51.9]}
12... Nf6 {[%clk 0:03:03.9]} 13. Bf3 {[%clk 0:02:48.4]} 13... Re8 {[%clk
0:03:03.6]} 14. Re1 {[%clk 0:02:44.2]} 14... Bd7 {[%clk 0:02:57.8]} 15. Ba3
{[%clk 0:02:42.8]} 15... b6 {[%clk 0:02:56.9]} 16. Bd6 {[%clk 0:02:41.4]} 16...
h6 {[%clk 0:02:50.8]} 17. a4 {[%clk 0:02:41.5]} 17... Qc8 {[%clk 0:02:42.3]} 18.
a5 {[%clk 0:02:37.7]} 18... Qb7 {[%clk 0:02:35.7]} 19. a6 {[%clk 0:02:37.5]}
19... Qc8 {[%clk 0:02:36.1]} 20. Kg2 {[%clk 0:02:32.3]} 20... Qd8 {[%clk
0:02:34]} 21. Qd2 {[%clk 0:02:29.1]} 21... Rc8 {[%clk 0:02:34.6]} 22. c5 {[%clk
0:02:21.8]} 22... b5 {[%clk 0:02:33.9]} 23. c4 {[%clk 0:02:17.4]} 23... bxc4
{[%clk 0:02:33.2]} 24. Qb4 {[%clk 0:02:17.3]} 24... Nd5 {[%clk 0:02:34.2]} 25.
Qxc4 {[%clk 0:02:18.2]} 25... Qf6 {[%clk 0:02:22.2]} 26. Rab1 {[%clk 0:02:18]}
26... e5 {[%clk 0:02:14.3]} 27. Bxe5 {[%clk 0:01:59.2]} 27... Bh3+ {[%clk
0:02:09.4]} 28. Kxh3 {[%clk 0:01:59.6]} 28... Qxf3 {[%clk 0:02:10.4]} 29. Rb3
{[%clk 0:00:51]} 29... Qf5+ {[%clk 0:02:07.4]} 30. Kg2 {[%clk 0:00:50.6]} 30...
f6 {[%clk 0:02:07.9]} 31. Rb7 {[%clk 0:00:19.3]} 31... fxe5 {[%clk 0:02:07.8]}
32. dxe5 {[%clk 0:00:20.2]} 32... Rxe5 {[%clk 0:02:07.2]} 33. Rxe5 {[%clk
0:00:20.6]} 33... Qxe5 {[%clk 0:02:08.3]} 34. Qg4 {[%clk 0:00:20.9]} 34... Rc7
{[%clk 0:02:06.3]} 35. Rxc7 {[%clk 0:00:21.7]} 35... Qxc7 {[%clk 0:02:05.3]} 36.
Qe6+ {[%clk 0:00:22]} 36... Kh7 {[%clk 0:02:05]} 37. h4 {[%clk 0:00:21.3]} 37...
g6 {[%clk 0:01:57]} 38. h5 {[%clk 0:00:21]} 38... gxh5 {[%clk 0:01:57.9]} 39.
Qf5+ {[%clk 0:00:22]} 39... Kg7 {[%clk 0:01:59.1]} 40. Qxh5 {[%clk 0:00:22.8]}
40... Qf7 {[%clk 0:01:59.4]} 41. Qe5+ {[%clk 0:00:20.1]} 41... Kg6 {[%clk
0:01:53.3]} 42. Qe4+ {[%clk 0:00:15.8]} 42... Qf5 {[%clk 0:01:51.7]} 43. Qe8+
{[%clk 0:00:16.4]} 43... Qf7 {[%clk 0:01:52.6]} 44. Qxc6+ {[%clk 0:00:16.2]}
44... Nf6 {[%clk 0:01:52.1]} 45. Qb7 {[%clk 0:00:12.1]} 45... Qd5+ {[%clk
0:01:52.4]} 46. Kg1 {[%clk 0:00:08.2]} 46... Qxc5 {[%clk 0:01:53.4]} 47. Qb1+
{[%clk 0:00:03.8]} 47... Kf7 {[%clk 0:01:52]} 48. Qb7+ {[%clk 0:00:03.6]} 48...
Ke6 {[%clk 0:01:53]} 49. Qf3 {[%clk 0:00:03.2]} 49... Qc1+ {[%clk 0:01:52.5]}
50. Kg2 {[%clk 0:00:03.5]} 50... Qc5 {[%clk 0:01:52.3]} 51. Qe2+ {[%clk
0:00:04.2]} 51... Qe5 {[%clk 0:01:52.5]} 52. Qd2 {[%clk 0:00:04.9]} 52... Qd5+
{[%clk 0:01:53.3]} 53. Qxd5+ {[%clk 0:00:05.6]} 53... Nxd5 {[%clk 0:01:54.2]}
54. Kf3 {[%clk 0:00:06.4]} 54... Nc7 {[%clk 0:01:55.2]} 55. Kg4 {[%clk
0:00:07.4]} 55... Kf6 {[%clk 0:01:55.5]} 56. Kh5 {[%clk 0:00:08.4]} 56... Kg7
{[%clk 0:01:56.5]} 57. f4 {[%clk 0:00:08.2]} 57... Nxa6 {[%clk 0:01:58.4]} 58.
f5 {[%clk 0:00:09.3]} 58... Nc5 {[%clk 0:01:59.2]} 59. f6+ {[%clk 0:00:10.4]}
59... Kxf6 {[%clk 0:01:59.6]} 60. g4 {[%clk 0:00:11.5]} 60... Ne4 {[%clk
0:02:00]} 61. Kh4 {[%clk 0:00:12.3]} 61... a5 {[%clk 0:02:00.8]} 62. Kh5 {[%clk
0:00:12]} 62... a4 {[%clk 0:02:01.5]} 63. Kh4 {[%clk 0:00:11.2]} 63... a3 {[%clk
0:02:02.5]} 64. g5+ {[%clk 0:00:08.3]} 64... hxg5+ {[%clk 0:02:03.1]} 65. Kg4
{[%clk 0:00:08.8]} 65... a2 {[%clk 0:02:04.1]} 66. Kf3 {[%clk 0:00:09.6]} 66...
Ke5 {[%clk 0:02:03]} 67. Ke3 {[%clk 0:00:10.1]} 67... a1=Q {[%clk 0:02:03.5]}
68. Kd3 {[%clk 0:00:11]} 68... Qc3+ {[%clk 0:02:03.5]} 69. Ke2 {[%clk
0:00:10.2]} 69... Kf4 {[%clk 0:02:04.2]} 70. Kf1 {[%clk 0:00:10.7]} 70... Qd2
{[%clk 0:02:04]} 71. Kg1 {[%clk 0:00:11.2]} 71... Qf2+ {[%clk 0:02:04.6]} 72.
Kh1 {[%clk 0:00:11.4]} 72... Ng3# {[%clk 0:02:05.9]} 0-1

[Event "*** MasterClass Titled Tuesday Blitz"]
[Site "Chess.com"]
[Date "2017.07.04"]
[Round "1"]
[White "pKiLz5Rn9b"]
[Black "viggi38"]
[Result "0-1"]
[WhiteElo "2476"]
[BlackElo "2247"]
[TimeControl "180+2"]
[EndTime "13:09:33 PDT"]
[Termination "viggi38 won on time"]

1. d4 {[%clk 0:03:01.9]} 1... f5 {[%clk 0:02:59.7]} 2. Nf3 {[%clk 0:03:02.3]}
2... Nf6 {[%clk 0:03:01]} 3. g3 {[%clk 0:03:03.4]} 3... g6 {[%clk 0:03:02.3]} 4.
Bg2 {[%clk 0:03:04.4]} 4... Bg7 {[%clk 0:03:03.6]} 5. c4 {[%clk 0:03:05.6]} 5...
O-O {[%clk 0:03:04.5]} 6. O-O {[%clk 0:03:06.9]} 6... d6 {[%clk 0:03:02.7]} 7.
Nc3 {[%clk 0:03:03.4]} 7... c6 {[%clk 0:03:02.9]} 8. b3 {[%clk 0:03:02]} 8...
Qe8 {[%clk 0:02:59.5]} 9. Ba3 {[%clk 0:02:57.5]} 9... Na6 {[%clk 0:02:53.4]} 10.
Re1 {[%clk 0:02:54.5]} 10... Ne4 {[%clk 0:02:49.2]} 11. Qc2 {[%clk 0:02:53.7]}
11... Nxc3 {[%clk 0:02:40.9]} 12. Qxc3 {[%clk 0:02:54.3]} 12... c5 {[%clk
0:02:40]} 13. Rad1 {[%clk 0:02:34.1]} 13... e5 {[%clk 0:02:33.7]} 14. dxe5
{[%clk 0:02:33.4]} 14... dxe5 {[%clk 0:02:32.7]} 15. e4 {[%clk 0:02:34.8]} 15...
f4 {[%clk 0:02:32.9]} 16. Rd5 {[%clk 0:02:35]} 16... Be6 {[%clk 0:02:14.4]} 17.
Rxe5 {[%clk 0:02:31.7]} 17... Qd7 {[%clk 0:02:00.3]} 18. Bb2 {[%clk 0:02:24.5]}
18... Rae8 {[%clk 0:01:52.4]} 19. Qc1 {[%clk 0:02:17.5]} 19... Bxe5 {[%clk
0:01:50.1]} 20. Nxe5 {[%clk 0:02:17.8]} 20... Qe7 {[%clk 0:01:46.2]} 21. gxf4
{[%clk 0:02:09.3]} 21... Qh4 {[%clk 0:01:42.2]} 22. Qc3 {[%clk 0:02:08.7]} 22...
Qxf4 {[%clk 0:01:39]} 23. Nd3 {[%clk 0:02:08.6]} 23... Qh6 {[%clk 0:01:37.1]}
24. Re3 {[%clk 0:01:53.4]} 24... Kf7 {[%clk 0:01:26.9]} 25. Nf4 {[%clk
0:01:21.9]} 25... Bg4 {[%clk 0:01:13.1]} 26. Nd5 {[%clk 0:01:11]} 26... Re6
{[%clk 0:01:11.2]} 27. h3 {[%clk 0:01:07.6]} 27... Bh5 {[%clk 0:01:08.2]} 28. a3
{[%clk 0:01:06.5]} 28... Ke8 {[%clk 0:00:46.3]} 29. b4 {[%clk 0:01:05.1]} 29...
b6 {[%clk 0:00:37]} 30. Qb3 {[%clk 0:01:05.2]} 30... Kd8 {[%clk 0:00:32.7]} 31.
Qa4 {[%clk 0:01:08]} 31... Nc7 {[%clk 0:00:31.2]} 32. Qxa7 {[%clk 0:01:06.6]}
32... Nxd5 {[%clk 0:00:31.3]} 33. cxd5 {[%clk 0:01:06.6]} 33... Re7 {[%clk
0:00:31.8]} 34. Qxb6+ {[%clk 0:01:06.3]} 34... Ke8 {[%clk 0:00:33]} 35. Qxc5
{[%clk 0:01:03.8]} 35... Qf4 {[%clk 0:00:33.5]} 36. Rg3 {[%clk 0:00:54.4]} 36...
Qd2 {[%clk 0:00:27.9]} 37. d6 {[%clk 0:00:40.9]} 37... Qxb2 {[%clk 0:00:17.3]}
38. dxe7 {[%clk 0:00:40.8]} 38... Rf7 {[%clk 0:00:17.5]} 0-1

[Event "*** MasterClass Titled Tuesday Blitz"]
[Site "Chess.com"]
[Date "2017.07.04"]
[Round "1"]
[White "wonderfultime"]
[Black "rubhani"]
[Result "1-0"]
[WhiteElo "2667"]
[BlackElo "2322"]
[TimeControl "180+2"]
[EndTime "13:09:53 PDT"]
[Termination "wonderfultime won by resignation"]

1. d4 {[%clk 0:03:00]} 1... Nf6 {[%clk 0:02:57.5]} 2. c4 {[%clk 0:02:49.6]} 2...
e6 {[%clk 0:02:56.4]} 3. Nc3 {[%clk 0:02:50.8]} 3... Bb4 {[%clk 0:02:56.3]} 4.
e3 {[%clk 0:02:52.2]} 4... O-O {[%clk 0:02:56.8]} 5. Ne2 {[%clk 0:02:53.1]} 5...
c6 {[%clk 0:02:56.7]} 6. a3 {[%clk 0:02:54]} 6... Ba5 {[%clk 0:02:57.6]} 7. c5
{[%clk 0:02:55]} 7... d5 {[%clk 0:02:21.8]} 8. cxd6 {[%clk 0:02:55.8]} 8... Qxd6
{[%clk 0:02:21.8]} 9. g3 {[%clk 0:02:57.2]} 9... e5 {[%clk 0:02:12]} 10. b4
{[%clk 0:02:54.2]} 10... Bb6 {[%clk 0:02:05]} 11. dxe5 {[%clk 0:01:53.2]} 11...
Qxe5 {[%clk 0:02:03.1]} 12. Bg2 {[%clk 0:01:25.5]} 12... Bg4 {[%clk 0:01:29]}
13. Bb2 {[%clk 0:01:18.2]} 13... Rd8 {[%clk 0:01:24.7]} 14. Qc1 {[%clk
0:01:13.6]} 14... Qf5 {[%clk 0:01:11]} 15. O-O {[%clk 0:01:09.8]} 15... Bf3
{[%clk 0:01:07.7]} 16. Qb1 {[%clk 0:00:55.5]} 16... Qxb1 {[%clk 0:01:01.5]} 17.
Raxb1 {[%clk 0:00:57.4]} 17... Bxg2 {[%clk 0:00:59.6]} 18. Kxg2 {[%clk
0:00:59.3]} 18... Nbd7 {[%clk 0:00:59.1]} 19. Na4 {[%clk 0:00:53]} 19... Ne4
{[%clk 0:00:57.5]} 20. Rfd1 {[%clk 0:00:52.7]} 20... Ndf6 {[%clk 0:00:54.6]} 21.
f3 {[%clk 0:00:51]} 21... Nd2 {[%clk 0:00:54.8]} 22. Rbc1 {[%clk 0:00:26.9]}
22... Bxe3 {[%clk 0:00:54.6]} 23. Rc3 {[%clk 0:00:26.3]} 23... Bh6 {[%clk
0:00:48.3]} 24. Rc2 {[%clk 0:00:23.3]} 24... Nb3 {[%clk 0:00:40.2]} 25. Rxd8+
{[%clk 0:00:20.3]} 25... Rxd8 {[%clk 0:00:42.1]} 26. f4 {[%clk 0:00:19.2]} 26...
Nd5 {[%clk 0:00:42.5]} 27. Kf3 {[%clk 0:00:19.1]} 27... g6 {[%clk 0:00:41.9]}
28. Nd4 {[%clk 0:00:14.4]} 28... Nxd4+ {[%clk 0:00:41.3]} 29. Bxd4 {[%clk
0:00:16.3]} 29... Bg7 {[%clk 0:00:42.1]} 30. Bf2 {[%clk 0:00:15.7]} 30... a6
{[%clk 0:00:41.7]} 31. Nc5 {[%clk 0:00:17.1]} 31... Rb8 {[%clk 0:00:40.4]} 32.
Nd7 {[%clk 0:00:18]} 32... Re8 {[%clk 0:00:38.6]} 33. Nc5 {[%clk 0:00:16.6]}
33... Rb8 {[%clk 0:00:37.4]} 34. g4 {[%clk 0:00:17.9]} 34... Bf8 {[%clk
0:00:36.7]} 35. Ne4 {[%clk 0:00:14.6]} 35... Be7 {[%clk 0:00:36.5]} 36. f5
{[%clk 0:00:15.6]} 36... f6 {[%clk 0:00:37.6]} 37. Bg3 {[%clk 0:00:15.8]} 37...
Rd8 {[%clk 0:00:37.5]} 38. h4 {[%clk 0:00:15.8]} 38... Kf7 {[%clk 0:00:38.4]}
39. h5 {[%clk 0:00:16.2]} 39... g5 {[%clk 0:00:39]} 40. Rd2 {[%clk 0:00:15.7]}
40... a5 {[%clk 0:00:29.6]} 41. bxa5 {[%clk 0:00:14.5]} 41... Ra8 {[%clk
0:00:30.2]} 42. Rb2 {[%clk 0:00:13.7]} 42... Rxa5 {[%clk 0:00:22.8]} 43. Rxb7
{[%clk 0:00:14.6]} 43... Rxa3+ {[%clk 0:00:23.7]} 44. Kf2 {[%clk 0:00:16]} 44...
Ra2+ {[%clk 0:00:20.5]} 45. Kg1 {[%clk 0:00:15.3]} 45... Ra1+ {[%clk 0:00:21.6]}
46. Kh2 {[%clk 0:00:16.5]} 46... Ra2+ {[%clk 0:00:22.4]} 47. Kh3 {[%clk
0:00:17.1]} 47... Nf4+ {[%clk 0:00:19.8]} 48. Bxf4 {[%clk 0:00:18.2]} 48... gxf4
{[%clk 0:00:21.7]} 49. g5 {[%clk 0:00:19.8]} 49... Kf8 {[%clk 0:00:20.1]} 50. g6
{[%clk 0:00:19.4]} 50... hxg6 {[%clk 0:00:20.3]} 51. fxg6 {[%clk 0:00:20.1]}
51... Re2 {[%clk 0:00:20.5]} 52. h6 {[%clk 0:00:10.6]} 52... Rxe4 {[%clk
0:00:20]} 53. Rb8+ {[%clk 0:00:12]} 53... Bd8 {[%clk 0:00:20.2]} 54. Rxd8+
{[%clk 0:00:13.3]} 54... Ke7 {[%clk 0:00:21.6]} 55. h7 {[%clk 0:00:14.3]} 55...
Kxd8 {[%clk 0:00:22.3]} 56. h8=Q+ {[%clk 0:00:15.4]} 56... Re8 {[%clk 0:00:22]}
57. Qxf6+ {[%clk 0:00:16]} 1-0

[Event "*** MasterClass Titled Tuesday Blitz"]
[Site "Chess.com"]
[Date "2017.07.04"]
[Round "1"]
[White "IamSchrodingersCat"]
[Black "maheswaran26"]
[Result "1-0"]
[WhiteElo "2442"]
[BlackElo "2144"]
[TimeControl "180+2"]
[EndTime "13:10:08 PDT"]
[Termination "IamSchrodingersCat won on time"]

1. e4 {[%clk 0:03:01.9]} 1... e5 {[%clk 0:02:56.4]} 2. Nf3 {[%clk 0:03:02.5]}
2... Nc6 {[%clk 0:02:56.4]} 3. Bb5 {[%clk 0:03:03.4]} 3... a6 {[%clk 0:02:56]}
4. Ba4 {[%clk 0:03:04.1]} 4... Nf6 {[%clk 0:02:55.8]} 5. d4 {[%clk 0:03:05]}
5... exd4 {[%clk 0:02:52.5]} 6. O-O {[%clk 0:03:06]} 6... Be7 {[%clk 0:02:34.8]}
7. e5 {[%clk 0:03:06]} 7... Ne4 {[%clk 0:02:34.9]} 8. b4 {[%clk 0:03:05.1]} 8...
O-O {[%clk 0:02:13.4]} 9. Re1 {[%clk 0:03:04.5]} 9... d5 {[%clk 0:01:50.8]} 10.
exd6 {[%clk 0:03:04.2]} 10... Nxd6 {[%clk 0:01:50.4]} 11. Bxc6 {[%clk 0:03:02]}
11... bxc6 {[%clk 0:01:49.9]} 12. Nxd4 {[%clk 0:02:58.5]} 12... Bf6 {[%clk
0:01:40.3]} 13. Nxc6 {[%clk 0:02:47.7]} 13... Qd7 {[%clk 0:01:40.5]} 14. Ne5
{[%clk 0:02:48.6]} 14... Qf5 {[%clk 0:01:40.1]} 15. f4 {[%clk 0:02:49.6]} 15...
Bb7 {[%clk 0:01:35.5]} 16. Nc3 {[%clk 0:02:30.3]} 16... Rad8 {[%clk 0:01:31.9]}
17. Qd3 {[%clk 0:01:44]} 17... Ne4 {[%clk 0:01:26]} 18. Qe3 {[%clk 0:01:31.5]}
18... Nxc3 {[%clk 0:00:42.9]} 19. Qxc3 {[%clk 0:01:33.4]} 19... Rfe8 {[%clk
0:00:41.4]} 20. Be3 {[%clk 0:01:02.5]} 20... Bxe5 {[%clk 0:00:34.2]} 21. fxe5
{[%clk 0:01:03.5]} 21... Qe4 {[%clk 0:00:34]} 22. Re2 {[%clk 0:00:57.2]} 22...
Rxe5 {[%clk 0:00:33.2]} 23. Rae1 {[%clk 0:00:46.3]} 23... Rde8 {[%clk
0:00:31.7]} 24. Qxc7 {[%clk 0:00:23.4]} 24... h5 {[%clk 0:00:28.5]} 25. h3
{[%clk 0:00:14]} 25... R5e7 {[%clk 0:00:27]} 26. Qg3 {[%clk 0:00:13.2]} 26...
Qe5 {[%clk 0:00:16]} 27. Qf2 {[%clk 0:00:09]} 27... Qd5 {[%clk 0:00:15.4]} 28.
c3 {[%clk 0:00:07.7]} 28... f5 {[%clk 0:00:14.4]} 29. Bd4 {[%clk 0:00:06.8]}
29... Rxe2 {[%clk 0:00:13.6]} 30. Rxe2 {[%clk 0:00:08.7]} 30... Rxe2 {[%clk
0:00:12.5]} 31. Qxe2 {[%clk 0:00:10.6]} 31... Kh7 {[%clk 0:00:13.3]} 32. Qd2
{[%clk 0:00:09.8]} 32... Kg6 {[%clk 0:00:13.1]} 33. Qf2 {[%clk 0:00:09.7]} 33...
Kh7 {[%clk 0:00:12.7]} 34. Qg3 {[%clk 0:00:09.6]} 34... Qf7 {[%clk 0:00:11.8]}
35. Qg5 {[%clk 0:00:09.7]} 35... f4 {[%clk 0:00:12.1]} 36. Kf2 {[%clk
0:00:06.3]} 36... f3 {[%clk 0:00:12]} 37. g4 {[%clk 0:00:02.6]} 37... Qxa2+
{[%clk 0:00:11.8]} 38. Kg3 {[%clk 0:00:03.8]} 38... Qf7 {[%clk 0:00:08.6]} 39.
gxh5 {[%clk 0:00:03.9]} 39... Kg8 {[%clk 0:00:08.2]} 40. Bf2 {[%clk 0:00:04.4]}
40... Qc7+ {[%clk 0:00:07.7]} 41. Qf4 {[%clk 0:00:05.2]} 41... Qxc3 {[%clk
0:00:07.8]} 42. Qb8+ {[%clk 0:00:05]} 42... Kh7 {[%clk 0:00:07.5]} 43. Qxb7
{[%clk 0:00:06]} 43... Qe5+ {[%clk 0:00:07.9]} 44. Kxf3 {[%clk 0:00:07.3]} 44...
Qxh5+ {[%clk 0:00:08]} 45. Ke3 {[%clk 0:00:07.7]} 45... Qxh3+ {[%clk 0:00:08.3]}
46. Qf3 {[%clk 0:00:09]} 46... Qd7 {[%clk 0:00:08.2]} 47. Qe4+ {[%clk
0:00:09.7]} 47... Kg8 {[%clk 0:00:08.2]} 48. Ke2 {[%clk 0:00:10.2]} 48... Qb5+
{[%clk 0:00:07.4]} 49. Kd2 {[%clk 0:00:10.1]} 49... Qa4 {[%clk 0:00:07.7]} 50.
Qc4+ {[%clk 0:00:09.9]} 50... Kh7 {[%clk 0:00:07.4]} 51. Bd4 {[%clk 0:00:11]}
51... Qd7 {[%clk 0:00:06.3]} 52. Qd3+ {[%clk 0:00:10.2]} 52... Kg8 {[%clk
0:00:03.6]} 53. Bc5 {[%clk 0:00:11.3]} 1-0